[Event "44th Chess Olympiad Women 2022"]
[Site "Chennai"]
[Date "2022.08.01"]
[Round "4.57"]
[White "Jacobs, Annelaine"]
[Black "Wijesuriya, G P Y.."]
[Result "1-0"]
[WhiteElo "1612"]
[BlackElo "1579"]
[Annotator "NA RC"]
[PlyCount "123"]
[EventDate "2022.??.??"]
[TimeControl "60"]

1. e4 {[%emt 0:00:04]} e5 {[%emt 0:00:23]} 2. Nf3 {[%emt 0:00:23]} Nc6 {
[%emt 0:00:07]} 3. Bb5 {[%emt 0:00:06]} a6 {[%emt 0:00:05]} 4. Bxc6 {[%emt 0:
00:00]} dxc6 {[%emt 0:00:06]} 5. d4 {[%emt 0:00:19]} exd4 {[%emt 0:00:06]} 6.
Qxd4 {[%emt 0:00:19]} Qxd4 {[%emt 0:00:06]} 7. Nxd4 {[%emt 0:00:08]} Bc5 {
[%emt 0:00:29]} 8. Be3 {[%emt 0:10:41]} Nf6 {[%emt 0:01:55]} 9. f3 {[%emt 0:00:
00]} O-O {[%emt 0:03:48]} 10. Nc3 {[%emt 0:04:44]} Re8 {[%emt 0:02:16]} 11.
O-O-O {[%emt 0:02:40]} b5 {[%emt 0:03:28]} 12. Bg5 {[%emt 0:03:01]} Bxd4 {
[%emt 0:04:42]} 13. Rxd4 {[%emt 0:01:22]} c5 {[%emt 0:02:33]} 14. Rd2 {[%emt 0:
00:00]} c6 {[%emt 0:01:07]} 15. Bxf6 {[%emt 0:01:05]} gxf6 {[%emt 0:00:03]} 16.
Rd6 {[%emt 0:04:10]} Bb7 {[%emt 0:20:15]} 17. Rxf6 {[%emt 0:01:31]} Rad8 {
[%emt 0:01:00]} 18. Rd1 {[%emt 0:00:35]} Rxd1+ {[%emt 0:00:09]} 19. Nxd1 {
[%emt 0:00:19]} Rd8 {[%emt 0:00:29]} 20. Ne3 {[%emt 0:01:14]} Kg7 {[%emt 0:00:
00]} 21. Rf5 {[%emt 0:08:14]} c4 {[%emt 0:00:12]} 22. Rg5+ {[%emt 0:01:10]} Kf6
{[%emt 0:03:18]} 23. h4 {[%emt 0:01:26]} Bc8 {[%emt 0:04:07]} 24. Rc5 {[%emt 0:
00:00]} Bd7 {[%emt 0:02:35]} 25. g4 {[%emt 0:03:31]} h6 {[%emt 0:05:19]} 26.
Nf5 {[%emt 0:04:33]} Bxf5 {[%emt 0:00:22]} 27. Rxf5+ {[%emt 0:00:05]} Kg7 {
[%emt 0:01:57]} 28. Rc5 {[%emt 0:06:33]} Rd6 {[%emt 0:10:16]} 29. b3 {[%emt 0:
00:00]} cxb3 {[%emt 0:03:06]} 30. axb3 {[%emt 0:00:53]} a5 {[%emt 0:00:17]} 31.
Rc3 {[%emt 0:02:19]} Kf6 {[%emt 0:10:24]} 32. Rc5 {[%emt 0:05:09]} Ke7 {
[%emt 0:02:00]} 33. Re5+ {[%emt 0:03:21]} Kd7 {[%emt 0:01:35]} 34. Rf5 {
[%emt 0:04:06]} Ke7 {[%emt 0:01:14]} 35. Rc5 {[%emt 0:02:39]} Rf6 {[%emt 0:00:
00]} 36. Rf5 {[%emt 0:00:31]} Rd6 {[%emt 0:04:29]} 37. Rc5 {[%emt 0:02:28]} Rf6
{[%emt 0:00:07]} 38. Rc3 {[%emt 0:02:51]} Kd6 {[%emt 0:01:31]} 39. Kd2 {
[%emt 0:00:25]} c5 {[%emt 0:02:16]} 40. Ke3 {[%emt 0:02:16]} Rg6 {[%emt 0:00:
00]} 41. Rd3+ {[%emt 0:30:39]} Ke7 {[%emt 0:34:13]} 42. Rd5 {[%emt 0:00:51]}
Rc6 {[%emt 0:00:01]} 43. Kd3 {[%emt 0:00:00]} Rd6 {[%emt 0:00:00]} 44. Rxd6 {
[%emt 0:00:00]} Kxd6 {[%emt 0:00:00]} 45. f4 {[%emt 0:00:00]} Ke6 {[%emt 0:00:
00]} 46. h5 {[%emt 0:00:00]} Kf6 {[%emt 0:00:00]} 47. c3 {[%emt 0:00:00]} Ke6 {
[%emt 0:00:00]} 48. Ke3 {[%emt 0:00:16]} Kf6 {[%emt 0:00:00]} 49. Kd3 {[%emt 0:
00:00]} Ke6 {[%emt 0:00:00]} 50. Kc2 {[%emt 0:00:38]} Kf6 {[%emt 0:00:00]} 51.
e5+ {[%emt 0:01:28]} Ke6 {[%emt 0:00:00]} 52. g5 {[%emt 0:00:46]} hxg5 {
[%emt 0:00:00]} 53. h6 {[%emt 0:00:16]} gxf4 {[%emt 0:00:00]} 54. h7 {[%emt 0:
00:00]} Kxe5 {[%emt 0:00:00]} 55. h8=Q+ {[%emt 0:00:19]} Ke4 {[%emt 0:00:00]}
56. Qe8+ {[%emt 0:00:44]} Kf3 {[%emt 0:00:00]} 57. Qxb5 {[%emt 0:00:21]} Kg3 {
[%emt 0:00:00]} 58. Qf1 {[%emt 0:00:39]} f3 {[%emt 0:00:00]} 59. Kd2 {[%emt 0:
00:00]} f5 {[%emt 0:00:00]} 60. Qg1+ {[%emt 0:00:24]} Kf4 {[%emt 0:00:00]} 61.
Qxc5 {[%emt 0:00:19]} Kg3 {[%emt 0:00:00]} 62. Qxf5 {[%emt 0:00:27]} 1-0

[Event "44th Chess Olympiad Women 2022"]
[Site "Chennai"]
[Date "2022.08.01"]
[Round "4.57"]
[White "Ranasinghe, S D.."]
[Black "Sagastegui, Thamara"]
[Result "1-0"]
[WhiteElo "1687"]
[BlackElo "1362"]
[Annotator "NA RC"]
[PlyCount "73"]
[EventDate "2022.??.??"]
[TimeControl "60"]

1. Nf3 {[%emt 0:00:11]} d5 {[%emt 0:00:08]} 2. g3 {[%emt 0:00:04]} Nf6 {
[%emt 0:00:06]} 3. Bg2 {[%emt 0:00:04]} Bf5 {[%emt 0:00:34]} 4. c4 {[%emt 0:00:
00]} c6 {[%emt 0:00:18]} 5. cxd5 {[%emt 0:00:34]} cxd5 {[%emt 0:00:05]} 6. Qb3
{[%emt 0:00:11]} Qb6 {[%emt 0:09:07]} 7. Qxb6 {[%emt 0:00:31]} axb6 {[%emt 0:
00:00]} 8. Nc3 {[%emt 0:00:03]} Bd7 {[%emt 0:00:34]} 9. d3 {[%emt 0:01:57]} e6
{[%emt 0:02:22]} 10. Bf4 {[%emt 0:00:12]} Bc6 {[%emt 0:03:20]} 11. O-O {
[%emt 0:00:34]} Be7 {[%emt 0:08:49]} 12. a3 {[%emt 0:00:49]} b5 {[%emt 0:01:42]
} 13. Nd4 {[%emt 0:00:34]} b4 {[%emt 0:01:36]} 14. axb4 {[%emt 0:00:05]} Rxa1 {
[%emt 0:01:36]} 15. Rxa1 {[%emt 0:00:06]} O-O {[%emt 0:07:08]} 16. b5 {[%emt 0:
00:00]} Bd7 {[%emt 0:01:02]} 17. Ra8 {[%emt 0:00:07]} Nc6 {[%emt 0:06:14]} 18.
Rxf8+ {[%emt 0:00:09]} Kxf8 {[%emt 0:00:12]} 19. bxc6 {[%emt 0:00:07]} bxc6 {
[%emt 0:00:02]} 20. Nc2 {[%emt 0:02:02]} c5 {[%emt 0:00:20]} 21. d4 {[%emt 0:
00:00]} c4 {[%emt 0:02:13]} 22. e4 {[%emt 0:00:47]} Bc6 {[%emt 0:13:52]} 23.
exd5 {[%emt 0:00:07]} Nxd5 {[%emt 0:06:19]} 24. Nxd5 {[%emt 0:00:08]} Bxd5 {
[%emt 0:00:43]} 25. Bxd5 {[%emt 0:00:07]} exd5 {[%emt 0:00:01]} 26. Ne3 {
[%emt 0:00:45]} g5 {[%emt 0:01:55]} 27. Bc7 {[%emt 0:00:05]} Bf6 {[%emt 0:00:
00]} 28. Bb6 {[%emt 0:00:07]} Ke8 {[%emt 0:01:15]} 29. Nxd5 {[%emt 0:00:08]}
Bg7 {[%emt 0:00:10]} 30. Bc5 {[%emt 0:00:20]} Kd7 {[%emt 0:00:12]} 31. Nb6+ {
[%emt 0:00:06]} Kc6 {[%emt 0:00:11]} 32. Nxc4 {[%emt 0:00:09]} Kd5 {[%emt 0:00:
00]} 33. Nd6 {[%emt 0:00:07]} Bxd4 {[%emt 0:03:41]} 34. Bxd4 {[%emt 0:00:07]}
Kxd6 {[%emt 0:00:48]} 35. g4 {[%emt 0:00:05]} Ke6 {[%emt 0:00:51]} 36. Kg2 {
[%emt 0:00:09]} f5 {[%emt 0:00:03]} 37. Kf3 {[%emt 0:00:08]} 1-0

[Event "44th Chess Olympiad Women 2022"]
[Site "Chennai"]
[Date "2022.08.01"]
[Round "4.58"]
[White "Marochkina, Nadezhda Valerevna"]
[Black "Cho, Yeonhee"]
[Result "0-1"]
[WhiteElo "1687"]
[BlackElo "1427"]
[Annotator "NA RC"]
[PlyCount "179"]
[EventDate "2022.??.??"]
[TimeControl "60"]

1. d4 {[%emt 0:00:05]} d5 {[%emt 0:00:06]} 2. c4 {[%emt 0:00:08]} e6 {[%emt 0:
00:00]} 3. Nf3 {[%emt 0:00:17]} Nf6 {[%emt 0:00:08]} 4. Bg5 {[%emt 0:00:12]}
Be7 {[%emt 0:00:14]} 5. e3 {[%emt 0:00:10]} a6 {[%emt 0:01:41]} 6. Nc3 {
[%emt 0:00:12]} Nbd7 {[%emt 0:00:10]} 7. Bd3 {[%emt 0:01:40]} dxc4 {[%emt 0:00:
00]} 8. Bxc4 {[%emt 0:00:07]} b5 {[%emt 0:00:12]} 9. Be2 {[%emt 0:00:25]} Bb7 {
[%emt 0:02:15]} 10. O-O {[%emt 0:01:04]} c5 {[%emt 0:04:05]} 11. b3 {[%emt 0:
00:00]} Nd5 {[%emt 0:16:24]} 12. Bxe7 {[%emt 0:01:47]} Qxe7 {[%emt 0:00:50]}
13. Nxd5 {[%emt 0:01:57]} Bxd5 {[%emt 0:00:25]} 14. a4 {[%emt 0:01:43]} b4 {
[%emt 0:27:56]} 15. Rc1 {[%emt 0:06:21]} O-O {[%emt 0:05:29]} 16. Bc4 {[%emt 0:
00:00]} Bxc4 {[%emt 0:15:26]} 17. Rxc4 {[%emt 0:00:29]} cxd4 {[%emt 0:00:40]}
18. Qxd4 {[%emt 0:06:05]} e5 {[%emt 0:13:58]} 19. Qd2 {[%emt 0:01:38]} e4 {
[%emt 0:07:39]} 20. Nd4 {[%emt 0:00:44]} a5 {[%emt 0:00:19]} 21. Rc7 {[%emt 0:
00:00]} Qd6 {[%emt 0:01:00]} 22. Qc2 {[%emt 0:02:04]} Nf6 {[%emt 0:00:21]} 23.
h3 {[%emt 0:02:42]} h6 {[%emt 0:00:29]} 24. Rc1 {[%emt 0:02:34]} Qd5 {[%emt 0:
00:00]} 25. Nc6 {[%emt 0:02:18]} Qd6 {[%emt 0:00:33]} 26. Ne7+ {[%emt 0:00:57]}
Kh8 {[%emt 0:00:02]} 27. Qb2 {[%emt 0:08:33]} Rad8 {[%emt 0:00:36]} 28. Nf5 {
[%emt 0:01:18]} Qe6 {[%emt 0:00:57]} 29. R7c6 {[%emt 0:00:38]} Qxf5 {[%emt 0:
00:00]} 30. R6c5 {[%emt 0:00:51]} Rd5 {[%emt 0:00:11]} 31. Rc7 {[%emt 0:00:41]}
Kg8 {[%emt 0:00:25]} 32. Qc2 {[%emt 0:01:00]} Rfd8 {[%emt 0:00:51]} 33. Qc4 {
[%emt 0:00:43]} Rd1+ {[%emt 0:00:31]} 34. Rxd1 {[%emt 0:00:02]} Rxd1+ {[%emt 0:
00:00]} 35. Kh2 {[%emt 0:00:03]} Qd5 {[%emt 0:00:41]} 36. Rc8+ {[%emt 0:00:33]}
Kh7 {[%emt 0:00:03]} 37. Qc7 {[%emt 0:00:06]} Qd6+ {[%emt 0:00:05]} 38. Qxd6 {
[%emt 0:00:05]} Rxd6 {[%emt 0:00:02]} 39. Rc7 {[%emt 0:00:23]} Rd7 {[%emt 0:00:
00]} 40. Rc5 {[%emt 0:00:11]} Rd5 {[%emt 0:00:05]} 41. Rc7 {[%emt 0:30:55]} Kg6
{[%emt 0:30:55]} 42. Kg3 {[%emt 0:00:09]} Rf5 {[%emt 0:00:00]} 43. Rc2 {
[%emt 0:00:00]} Nd7 {[%emt 0:00:00]} 44. Rc6+ {[%emt 0:00:00]} f6 {[%emt 0:00:
00]} 45. Ra6 {[%emt 0:00:00]} Nc5 {[%emt 0:00:00]} 46. Rxa5 {[%emt 0:00:00]}
Nxb3 {[%emt 0:00:00]} 47. Ra7 {[%emt 0:00:00]} Ra5 {[%emt 0:00:00]} 48. Rb7 {
[%emt 0:00:00]} Rxa4 {[%emt 0:00:00]} 49. h4 {[%emt 0:00:00]} Na5 {[%emt 0:00:
00]} 50. h5+ {[%emt 0:00:00]} Kh7 {[%emt 0:00:00]} 51. Rb8 {[%emt 0:00:00]} b3
{[%emt 0:00:00]} 52. Kf4 {[%emt 0:00:00]} Nc6 {[%emt 0:00:00]} 53. Rxb3 {
[%emt 0:00:00]} Ne5 {[%emt 0:00:00]} 54. g4 {[%emt 0:00:00]} Ra2 {[%emt 0:00:
00]} 55. Kg3 {[%emt 0:00:00]} Ra1 {[%emt 0:00:00]} 56. Kf4 {[%emt 0:00:00]} Rg1
{[%emt 0:00:00]} 57. Kxe4 {[%emt 0:00:00]} Rxg4+ {[%emt 0:00:00]} 58. f4 {
[%emt 0:00:00]} Nf7 {[%emt 0:00:00]} 59. Ra3 {[%emt 0:00:00]} Rh4 {[%emt 0:00:
00]} 60. Ra5 {[%emt 0:00:00]} Rh3 {[%emt 0:00:59]} 61. Rd5 {[%emt 0:00:00]} f5+
{[%emt 0:05:58]} 62. Kd4 {[%emt 0:00:00]} g6 {[%emt 0:04:25]} 63. hxg6+ {
[%emt 0:00:00]} Kxg6 {[%emt 0:00:02]} 64. e4 {[%emt 0:00:00]} fxe4 {[%emt 0:00:
00]} 65. Kxe4 {[%emt 0:00:00]} Rh5 {[%emt 0:01:09]} 66. Rd7 {[%emt 0:00:00]}
Rf5 {[%emt 0:00:24]} 67. Ke3 {[%emt 0:00:00]} Rf6 {[%emt 0:00:56]} 68. Ra7 {
[%emt 0:00:00]} Nd8 {[%emt 0:00:49]} 69. Ra8 {[%emt 0:00:00]} Ne6 {[%emt 0:00:
00]} 70. Ra4 {[%emt 0:00:00]} Kh5 {[%emt 0:00:45]} 71. Kf3 {[%emt 0:00:00]} Rf5
{[%emt 0:00:53]} 72. Kg3 {[%emt 0:00:00]} Nc5 {[%emt 0:00:22]} 73. Rd4 {
[%emt 0:00:00]} Ne6 {[%emt 0:00:06]} 74. Ra4 {[%emt 0:00:00]} Rd5 {[%emt 0:00:
00]} 75. Kf3 {[%emt 0:00:00]} Rd3+ {[%emt 0:01:28]} 76. Ke2 {[%emt 0:00:00]}
Rd4 {[%emt 0:00:24]} 77. Ra5+ {[%emt 0:00:22]} Kg4 {[%emt 0:00:04]} 78. f5 {
[%emt 0:00:03]} Nf4+ {[%emt 0:00:06]} 79. Ke3 {[%emt 0:00:21]} Rd5 {[%emt 0:00:
00]} 80. Ra6 {[%emt 0:00:41]} h5 {[%emt 0:00:44]} 81. f6 {[%emt 0:00:33]} Rf5 {
[%emt 0:00:10]} 82. Ke4 {[%emt 0:00:08]} h4 {[%emt 0:00:37]} 83. Ra8 {[%emt 0:
00:00]} Rxf6 {[%emt 0:00:10]} 84. Rg8+ {[%emt 0:00:10]} Ng6 {[%emt 0:00:54]}
85. Rg7 {[%emt 0:00:52]} h3 {[%emt 0:00:36]} 86. Rh7 {[%emt 0:00:05]} Kg3 {
[%emt 0:00:40]} 87. Rh5 {[%emt 0:00:24]} Rf4+ {[%emt 0:00:13]} 88. Ke3 {
[%emt 0:00:11]} h2 {[%emt 0:00:21]} 89. Rh6 {[%emt 0:00:15]} Nh4 {[%emt 0:00:
00]} 90. Kd3 {[%emt 0:00:48]} 0-1

[Event "44th Chess Olympiad Women 2022"]
[Site "Chennai"]
[Date "2022.08.01"]
[Round "4.58"]
[White "Park, Haneul"]
[Black "Sy Mame, Binta"]
[Result "1-0"]
[WhiteElo "1531"]
[BlackElo "1256"]
[Annotator "NA RC"]
[PlyCount "64"]
[EventDate "2022.??.??"]
[TimeControl "60"]

1. d4 {[%emt 0:00:02]} d5 {[%emt 0:00:15]} 2. c4 {[%emt 0:00:06]} e6 {[%emt 0:
00:00]} 3. Nf3 {[%emt 0:00:14]} Nc6 {[%emt 0:00:23]} 4. Nc3 {[%emt 0:01:01]}
dxc4 {[%emt 0:01:15]} 5. e3 {[%emt 0:00:34]} Bb4 {[%emt 0:01:30]} 6. Bxc4 {
[%emt 0:00:33]} e5 {[%emt 0:00:52]} 7. d5 {[%emt 0:02:38]} Bxc3+ {[%emt 0:00:
00]} 8. bxc3 {[%emt 0:00:11]} Nce7 {[%emt 0:00:39]} 9. Nxe5 {[%emt 0:01:06]}
Nxd5 {[%emt 0:00:25]} 10. Qxd5 {[%emt 0:00:25]} Qxd5 {[%emt 0:00:37]} 11. Bxd5
{[%emt 0:00:06]} Be6 {[%emt 0:01:13]} 12. Bxb7 {[%emt 0:00:19]} Rb8 {[%emt 0:
00:00]} 13. Bc6+ {[%emt 0:00:20]} Ke7 {[%emt 0:01:00]} 14. Ba3+ {[%emt 0:00:27]
} Kf6 {[%emt 0:00:18]} 15. Nd7+ {[%emt 0:01:02]} Bxd7 {[%emt 0:00:43]} 16. Bxd7
{[%emt 0:00:07]} Nh6 {[%emt 0:00:37]} 17. O-O {[%emt 0:00:30]} Rhd8 {[%emt 0:
00:00]} 18. Rfd1 {[%emt 0:00:40]} Nf5 {[%emt 0:01:18]} 19. Bxf5 {[%emt 0:01:44]
} Rxd1+ {[%emt 0:00:48]} 20. Rxd1 {[%emt 0:00:06]} Kxf5 {[%emt 0:00:31]} 21. h3
{[%emt 0:00:07]} Ke6 {[%emt 0:00:05]} 22. Bb4 {[%emt 0:00:40]} f6 {[%emt 0:00:
00]} 23. Rd4 {[%emt 0:00:20]} Rc8 {[%emt 0:00:53]} 24. Re4+ {[%emt 0:00:19]}
Kf7 {[%emt 0:00:55]} 25. Re7+ {[%emt 0:00:12]} Kg8 {[%emt 0:00:14]} 26. Ba5 {
[%emt 0:00:17]} c6 {[%emt 0:01:12]} 27. Rxa7 {[%emt 0:00:16]} Rb8 {[%emt 0:00:
00]} 28. Rc7 {[%emt 0:00:09]} Rb5 {[%emt 0:00:37]} 29. Bb4 {[%emt 0:00:26]} Rb6
{[%emt 0:01:24]} 30. f4 {[%emt 0:01:19]} Ra6 {[%emt 0:02:05]} 31. f5 {[%emt 0:
00:00]} Rxa2 {[%emt 0:00:08]} 32. Rc8+ {[%emt 0:00:07]} Kf7 {[%emt 0:03:44]}
1-0

[Event "44th Chess Olympiad Women 2022"]
[Site "Chennai"]
[Date "2022.08.01"]
[Round "4.58"]
[White "Sy, Mariama"]
[Black "Kang, Sohyun"]
[Result "0-1"]
[WhiteElo "1211"]
[BlackElo "1593"]
[Annotator "NA RC"]
[PlyCount "80"]
[EventDate "2022.??.??"]
[TimeControl "60"]

1. e4 {[%emt 0:00:08]} e6 {[%emt 0:00:06]} 2. d4 {[%emt 0:00:17]} d5 {[%emt 0:
00:00]} 3. Nc3 {[%emt 0:00:27]} Bb4 {[%emt 0:00:08]} 4. Bd2 {[%emt 0:01:03]}
Nf6 {[%emt 0:02:23]} 5. Bd3 {[%emt 0:03:32]} Bxc3 {[%emt 0:04:10]} 6. Bxc3 {
[%emt 0:00:33]} dxe4 {[%emt 0:00:04]} 7. Be2 {[%emt 0:02:49]} O-O {[%emt 0:00:
00]} 8. Qd2 {[%emt 0:02:54]} b6 {[%emt 0:01:09]} 9. O-O-O {[%emt 0:01:09]} Bb7
{[%emt 0:00:06]} 10. f3 {[%emt 0:01:40]} a5 {[%emt 0:01:53]} 11. Qe3 {[%emt 0:
00:00]} a4 {[%emt 0:07:15]} 12. Bb4 {[%emt 0:01:59]} Re8 {[%emt 0:00:25]} 13.
Bf1 {[%emt 0:04:23]} Na6 {[%emt 0:04:47]} 14. Qa3 {[%emt 0:01:19]} Nd5 {
[%emt 0:06:26]} 15. c3 {[%emt 0:01:57]} Ne3 {[%emt 0:05:11]} 16. Re1 {[%emt 0:
00:00]} Nxf1 {[%emt 0:00:19]} 17. Rxf1 {[%emt 0:00:57]} Qg5+ {[%emt 0:00:03]}
18. f4 {[%emt 0:01:00]} Qxg2 {[%emt 0:01:03]} 19. Nh3 {[%emt 0:00:13]} Qxh3 {
[%emt 0:00:15]} 20. Qxa4 {[%emt 0:01:12]} Qe3+ {[%emt 0:02:09]} 21. Kb1 {
[%emt 0:01:41]} Qd3+ {[%emt 0:01:36]} 22. Ka1 {[%emt 0:00:35]} Nxb4 {[%emt 0:
00:00]} 23. Qxb4 {[%emt 0:00:39]} Bd5 {[%emt 0:00:21]} 24. a3 {[%emt 0:01:01]}
Qc4 {[%emt 0:01:40]} 25. Qxc4 {[%emt 0:01:37]} Bxc4 {[%emt 0:02:49]} 26. Re1 {
[%emt 0:00:21]} Ra5 {[%emt 0:03:00]} 27. Rxe4 {[%emt 0:00:30]} Bd5 {[%emt 0:00:
00]} 28. Re5 {[%emt 0:01:13]} Bxh1 {[%emt 0:00:21]} 29. Rxa5 {[%emt 0:00:26]}
bxa5 {[%emt 0:00:03]} 30. Ka2 {[%emt 0:00:19]} a4 {[%emt 0:00:39]} 31. b4 {
[%emt 0:00:17]} Bd5+ {[%emt 0:01:06]} 32. Kb2 {[%emt 0:00:12]} f6 {[%emt 0:00:
00]} 33. Kc2 {[%emt 0:00:09]} e5 {[%emt 0:00:30]} 34. fxe5 {[%emt 0:00:20]}
fxe5 {[%emt 0:00:05]} 35. dxe5 {[%emt 0:01:19]} Bc4 {[%emt 0:00:25]} 36. Kd2 {
[%emt 0:00:14]} Rxe5 {[%emt 0:00:15]} 37. Kc2 {[%emt 0:00:54]} Re2+ {[%emt 0:
00:00]} 38. Kd1 {[%emt 0:00:20]} g5 {[%emt 0:00:52]} 39. Kc1 {[%emt 0:00:12]}
Rxh2 {[%emt 0:00:25]} 40. Kb1 {[%emt 0:00:28]} g4 {[%emt 0:00:02]} 0-1

[Event "44th Chess Olympiad Women 2022"]
[Site "Chennai"]
[Date "2022.08.01"]
[Round "4.59"]
[White "Madelta Glenda"]
[Black "Sisior, Destiny"]
[Result "1-0"]
[WhiteElo "1516"]
[BlackElo "1298"]
[Annotator "NA RC"]
[PlyCount "51"]
[EventDate "2022.??.??"]
[TimeControl "60"]

1. d4 {[%emt 0:00:02]} c5 {[%emt 0:00:17]} 2. d5 {[%emt 0:00:09]} d6 {[%emt 0:
00:00]} 3. c4 {[%emt 0:01:16]} Nf6 {[%emt 0:00:21]} 4. Nc3 {[%emt 0:00:19]} g6
{[%emt 0:00:38]} 5. e4 {[%emt 0:00:25]} Bg7 {[%emt 0:00:21]} 6. Bd3 {[%emt 0:
00:00]} e5 {[%emt 0:03:18]} 7. Nge2 {[%emt 0:01:53]} O-O {[%emt 0:00:56]} 8.
O-O {[%emt 0:00:48]} Bd7 {[%emt 0:00:15]} 9. f4 {[%emt 0:03:20]} exf4 {[%emt 0:
00:00]} 10. Bxf4 {[%emt 0:00:13]} Bg4 {[%emt 0:02:20]} 11. Qd2 {[%emt 0:00:26]}
Qd7 {[%emt 0:02:18]} 12. Ng3 {[%emt 0:02:57]} Re8 {[%emt 0:02:10]} 13. Nb5 {
[%emt 0:03:10]} Bf8 {[%emt 0:07:12]} 14. Bxd6 {[%emt 0:01:29]} Bxd6 {[%emt 0:
00:00]} 15. Rxf6 {[%emt 0:00:20]} Bxg3 {[%emt 0:00:54]} 16. hxg3 {[%emt 0:00:
00]} a6 {[%emt 0:00:21]} 17. Nd6 {[%emt 0:01:11]} Re7 {[%emt 0:02:32]} 18. Qf4
{[%emt 0:00:35]} Nc6 {[%emt 0:03:27]} 19. dxc6 {[%emt 0:01:08]} bxc6 {[%emt 0:
00:00]} 20. Rf1 {[%emt 0:02:19]} Be6 {[%emt 0:03:18]} 21. e5 {[%emt 0:00:39]}
Rf8 {[%emt 0:03:10]} 22. Qh6 {[%emt 0:03:27]} Qd8 {[%emt 0:09:09]} 23. R1f4 {
[%emt 0:00:44]} Bg4 {[%emt 0:04:50]} 24. Rxg4 {[%emt 0:04:50]} Rxe5 {[%emt 0:
00:00]} 25. Rh4 {[%emt 0:00:19]} Re1+ {[%emt 0:03:18]} 26. Kh2 {[%emt 0:01:57]}
1-0

[Event "44th Chess Olympiad Women 2022"]
[Site "Chennai"]
[Date "2022.08.01"]
[Round "4.59"]
[White "Obondo, Cynthia Awino"]
[Black "Magno, Angelica"]
[Result "1-0"]
[WhiteElo "1439"]
[BlackElo "1211"]
[Annotator "NA RC"]
[PlyCount "131"]
[EventDate "2022.??.??"]
[TimeControl "60"]

1. d4 {[%emt 0:00:56]} Nf6 {[%emt 0:00:37]} 2. Nf3 {[%emt 0:00:15]} d6 {
[%emt 0:00:29]} 3. e3 {[%emt 0:01:09]} g6 {[%emt 0:00:48]} 4. Bd3 {[%emt 0:00:
00]} Bg7 {[%emt 0:00:36]} 5. O-O {[%emt 0:00:53]} O-O {[%emt 0:00:17]} 6. b3 {
[%emt 0:03:55]} b6 {[%emt 0:00:32]} 7. Bb2 {[%emt 0:00:06]} Bb7 {[%emt 0:00:59]
} 8. Nbd2 {[%emt 0:00:19]} Nc6 {[%emt 0:01:02]} 9. c4 {[%emt 0:01:37]} Nb4 {
[%emt 0:03:00]} 10. Bb1 {[%emt 0:00:13]} c5 {[%emt 0:05:37]} 11. a3 {[%emt 0:
00:00]} Nc6 {[%emt 0:02:33]} 12. d5 {[%emt 0:01:47]} Nb8 {[%emt 0:05:50]} 13.
Qe2 {[%emt 0:01:28]} Ba6 {[%emt 0:01:07]} 14. Bd3 {[%emt 0:01:13]} e5 {[%emt 0:
00:00]} 15. dxe6 {[%emt 0:01:23]} fxe6 {[%emt 0:01:04]} 16. Rad1 {[%emt 0:00:
00]} Nc6 {[%emt 0:01:39]} 17. Ng5 {[%emt 0:05:17]} Qe7 {[%emt 0:04:52]} 18. f4
{[%emt 0:01:46]} Rae8 {[%emt 0:02:39]} 19. Rf3 {[%emt 0:03:23]} Bc8 {[%emt 0:
00:00]} 20. h3 {[%emt 0:16:38]} e5 {[%emt 0:11:49]} 21. Nde4 {[%emt 0:13:53]}
Ng4 {[%emt 0:18:35]} 22. hxg4 {[%emt 0:09:37]} Bxg4 {[%emt 0:00:32]} 23. fxe5 {
[%emt 0:09:41]} Bxf3 {[%emt 0:01:59]} 24. Nxf3 {[%emt 0:03:17]} Nxe5 {[%emt 0:
00:00]} 25. Nxe5 {[%emt 0:01:11]} Bxe5 {[%emt 0:02:05]} 26. Bxe5 {[%emt 0:00:
00]} Qxe5 {[%emt 0:01:52]} 27. Rf1 {[%emt 0:01:55]} Rf7 {[%emt 0:01:07]} 28.
Rf2 Rxf2 {[%emt 0:00:30]} 29. Qxf2 {[%emt 0:01:03]} Rf8 {[%emt 0:00:24]} 30.
Qf1 {[%emt 0:01:27]} Kg7 {[%emt 0:04:52]} 31. Qc1 {[%emt 0:02:48]} Qf4 {
[%emt 0:05:04]} 32. Nc3 Qg3 {[%emt 0:00:00]} 33. Ne4 {[%emt 0:01:38]} Qe5 {
[%emt 0:00:00]} 34. a4 {[%emt 0:00:30]} a5 {[%emt 0:00:00]} 35. Nc3 {[%emt 0:
00:00]} Qg3 {[%emt 0:00:46]} 36. Qd2 {[%emt 0:00:12]} Qe5 {[%emt 0:06:30]} 37.
Be4 {[%emt 0:01:10]} h5 {[%emt 0:03:26]} 38. Bf3 {[%emt 0:03:14]} Re8 {[%emt 0:
00:00]} 39. e4 {[%emt 0:02:12]} h4 {[%emt 0:02:26]} 40. Nb5 {[%emt 0:01:12]}
Rd8 {[%emt 0:04:49]} 41. Qc3 {[%emt 0:31:43]} Rf8 {[%emt 0:31:25]} 42. Qxe5+ {
[%emt 0:01:01]} dxe5 {[%emt 0:00:19]} 43. Nc7 {[%emt 0:00:19]} Rh8 {[%emt 0:00:
00]} 44. Kh2 {[%emt 0:00:28]} g5 {[%emt 0:00:29]} 45. Kh3 {[%emt 0:00:11]} Rh7
{[%emt 0:00:00]} 46. Kg4 {[%emt 0:00:00]} Kg6 {[%emt 0:02:25]} 47. Nd5 {
[%emt 0:00:00]} Rb7 {[%emt 0:00:00]} 48. Kh3 {[%emt 0:00:00]} Kh6 {[%emt 0:00:
00]} 49. Bg4 {[%emt 0:00:00]} Rf7 {[%emt 0:00:00]} 50. Bf5 {[%emt 0:00:00]} Rg7
{[%emt 0:00:00]} 51. Ne3 {[%emt 0:00:00]} Re7 {[%emt 0:00:00]} 52. Nd5 {
[%emt 0:00:00]} Re8 {[%emt 0:00:00]} 53. Kg4 {[%emt 0:00:00]} Rf8 {[%emt 0:00:
00]} 54. Ne7 {[%emt 0:00:00]} Rd8 {[%emt 0:00:00]} 55. Nd5 {[%emt 0:00:00]} Rf8
{[%emt 0:00:00]} 56. Kf3 {[%emt 0:00:00]} Kh5 {[%emt 0:00:00]} 57. Ke2 {
[%emt 0:00:00]} g4 {[%emt 0:00:00]} 58. Ne3 {[%emt 0:00:00]} g3 {[%emt 0:00:00]
} 59. Ng4 {[%emt 0:00:00]} Kg5 {[%emt 0:02:26]} 60. Nxe5 {[%emt 0:01:04]} Re8 {
[%emt 0:01:24]} 61. Nf3+ {[%emt 0:01:20]} Kh5 {[%emt 0:01:15]} 62. Ke3 {
[%emt 0:00:18]} Rd8 {[%emt 0:00:27]} 63. e5 {[%emt 0:01:27]} Rd1 {[%emt 0:00:
00]} 64. e6 {[%emt 0:01:14]} Rf1 {[%emt 0:01:17]} 65. e7 {[%emt 0:00:33]} Rf2 {
[%emt 0:00:05]} 66. e8=Q+ {[%emt 0:00:17]} 1-0